Date of Transaction,LA dept which incurred the expenditure,Beneficiary,Amount,VAT,Summary of the purpose of expenditure,Merchant Category
27/10/20,Department of the Deputy Chief Excutive Officer,VIVID HOUSING LTD,247.08,,RIA,BUSINESS SERVICES-NOT ELSEWHERE CLASSIFIED
27/10/20,Department of the Deputy Chief Excutive Officer,VIVID HOUSING LTD,247.08,,RIA,BUSINESS SERVICES-NOT ELSEWHERE CLASSIFIED
23/10/20,Department of the Deputy Chief Excutive Officer,WWW.BEDS.CO.UK,239.00,,BED,"EQUIP, FURNITURE, HOME FURNSHNGS STRS (EXCPT APPL)"
20/10/20,Department of the Deputy Chief Excutive Officer,ROUNDABOUT HOTEL,291.67,,B&B,"LODGING-HOTELS,MOTELS,RESORTS-NOT CLASSIFIED"
19/10/20,Department of the Deputy Chief Excutive Officer,ROUNDABOUT HOTEL,350.00,,B&B,"LODGING-HOTELS,MOTELS,RESORTS-NOT CLASSIFIED"
19/10/20,Department of the Deputy Chief Excutive Officer,ROUNDABOUT HOTEL,291.67,,ROUNDABOUT B&B,"LODGING-HOTELS,MOTELS,RESORTS-NOT CLASSIFIED"
19/10/20,Department of the Deputy Chief Excutive Officer,TIMPSON LTD,10.50,,GARAGE KEYS,MISCELLANEOUS AND SPECIALTY RETAIL STORES
19/10/20,Department of the Deputy Chief Excutive Officer,ROUNDABOUT HOTEL,291.67,,ROUNDABOUT B&B,"LODGING-HOTELS,MOTELS,RESORTS-NOT CLASSIFIED"
15/10/20,Department of the Deputy Chief Excutive Officer,BRITISH HEART FOUNDATI,145.00,,FURNITURE,"ORGANIZATIONS, CHARITABLE AND SOCIAL SERVICES"
15/10/20,Department of the Deputy Chief Excutive Officer,TIMPSON LTD,7.00,,KEYS,MISCELLANEOUS AND SPECIALTY RETAIL STORES
07/10/20,Department of the Deputy Chief Excutive Officer,BRITISH HEART FOUNDATI,295.00,,FURNITURE,"ORGANIZATIONS, CHARITABLE AND SOCIAL SERVICES"
07/10/20,Department of the Deputy Chief Excutive Officer,BRITISH HEART FOUNDATI,270.00,,FURNITURE,"ORGANIZATIONS, CHARITABLE AND SOCIAL SERVICES"
06/10/20,Department of the Deputy Chief Excutive Officer,TIMPSON LTD,10.50,,KEYS,MISCELLANEOUS AND SPECIALTY RETAIL STORES
27/10/20,Planning & Regeneration,SAFPRO INDUSTRIAL SUPP,357.00,,PPE,INDUSTRIAL SUPPLIES NOT ELSEWHERE CLASSIFIED
23/10/20,Planning & Regeneration,CASTLE (EU) LTD,312.89,,CLEANING SUPPLIES,INDUSTRIAL SUPPLIES NOT ELSEWHERE CLASSIFIED
23/10/20,Planning & Regeneration,V TUF,30.82,,WET AND DRY VAC,"SANITATION, POLISHING & SPECIALITY CLEANING PREP"
14/10/20,Planning & Regeneration,WWW.NUCOPLUS.COM,32.50,,FIRST AID CERTS,"SCHOOLS, TRADE AND VOCATIONAL"
15/10/20,Planning & Regeneration,WWW.TOOLSTATION.COM,154.13,,REPLACEMENT LADDERS,HARDWARE STORES
13/10/20,Planning & Regeneration,SAFPRO INDUSTRIAL SUPP,476.00,,FACE MASKS,INDUSTRIAL SUPPLIES NOT ELSEWHERE CLASSIFIED
08/10/20,Planning & Regeneration,HTTP://WWW.HYDRO-X.CO.,879.40,,SPLIT - MASKS WIPES AND GLOVES,CHEMICALS/ALLIED PRODUCTS NOT ELSEWHERE CLASSIFIED
08/10/20,Planning & Regeneration,HTTP://WWW.HYDRO-X.CO.,308.40,,SPLIT - MASKS WIPES AND GLOVES,CHEMICALS/ALLIED PRODUCTS NOT ELSEWHERE CLASSIFIED
08/10/20,Planning & Regeneration,CASTLE (EU) LTD,334.23,,CLEANING SUPPLIES,INDUSTRIAL SUPPLIES NOT ELSEWHERE CLASSIFIED
01/10/20,Planning & Regeneration,WWW.NUCOPLUS.COM,32.50,,FIRST AID CERTS,"SCHOOLS, TRADE AND VOCATIONAL"
29/09/20,Planning & Regeneration,RAPID RACKING,340.00,,REPLACEMENT STACKING BOXES,"EQUIP, FURNITURE, HOME FURNSHNGS STRS (EXCPT APPL)"
12/10/20,Department of the Deputy Chief Excutive Officer,AUDIBLE UK,7.99,,UNRECOGNISED TRANSACTION,DIRECT MARKETING-CONTINUITY/SUBSCRIPTION MERCHANTS
13/10/20,Department of the Deputy Chief Excutive Officer,AAUK LV CREDIT CONTROL,218.08,,OVERDUE ACCOUNT,"AUTOMOTIVE PARTS, ACCESSORIES STORES"
07/10/20,Department of the Deputy Chief Excutive Officer,ORCA,30.00,,BRAKE SHOE RELINE,"AUTOMOTIVE PARTS, ACCESSORIES STORES"
22/10/20,Department of the Deputy Chief Excutive Officer,PAYPAL  TIANKEWANGL EB,-7.00,,PART REFUND FOR HEADSET,DEPARTMENT STORES
21/10/20,Department of the Deputy Chief Excutive Officer,PAYPAL  TIANKEWANGL EB,-7.00,,PART REFUND ON HEADSET,DEPARTMENT STORES
13/10/20,Department of the Deputy Chief Excutive Officer,PAYPAL  TIANKEWANGL EB,14.80,,HEADSETS,DEPARTMENT STORES
13/10/20,Department of the Deputy Chief Excutive Officer,CARTRIDGEPEOPLE.COM,36.94,,INK FOR PRINTER,STATIONERY/OFFICE SUPPLIES/PRINTING & WRITING PAP.
26/10/20,Streetscene,NAIVETTE SERVICES LIMI,833.33,,CONCRETE BLOCKS,"FREIGHT CARRIER,TRUCKING-LCL/LNG DIST, MVG/STORAGE"
26/10/20,Streetscene,NAIVETTE SERVICES LIMI,651.67,,CONCRETE BLOCKS,"FREIGHT CARRIER,TRUCKING-LCL/LNG DIST, MVG/STORAGE"
19/10/20,Streetscene,B & Q 1002,3.91,,COMPOST FOR SOIL BOX,HOME SUPPLY WAREHOUSE STORES
09/10/20,Streetscene,POST OFFICE COUNTER,2.45,,RECORDED DELIVERY,POSTAL SERVICES-GOVERNMENT ONLY
28/09/20,Streetscene,NAIVETTE SERVICES LIMI,833.33,,CONCRETE BLOCKS,"FREIGHT CARRIER,TRUCKING-LCL/LNG DIST, MVG/STORAGE"
28/09/20,Streetscene,NAIVETTE SERVICES LIMI,651.67,,CONCRETE BLOCKS,"FREIGHT CARRIER,TRUCKING-LCL/LNG DIST, MVG/STORAGE"
14/10/20,Planning & Regeneration,WWW.SGN.CO.UK,819.00,,REMOVE GAS SUPPLY,HOUSEHOLD APPLIANCE STORES
25/10/20,Support Services,AMZNMKTPLACE AMAZON.CO,34.97,,EXPRESS CARDS,MISCELLANEOUS AND SPECIALTY RETAIL STORES
09/10/20,Support Services,PREMIER FARNELL,124.47,,MISC PC CABLES,ELECTRICAL PARTS AND EQUIPMENT
26/10/20,Leisure & Community,CARRIER BAG SHOP,108.12,,BAGS TRANSPORT ESSENTIAL FOOD,BUSINESS SERVICES-NOT ELSEWHERE CLASSIFIED
25/10/20,Leisure & Community,AMZNMKTPLACE,64.24,,EVENT EQUIPMENT,MISCELLANEOUS AND SPECIALTY RETAIL STORES
12/10/20,Leisure & Community,CROMA LOCKSMITHS & SEC,107.23,,KEY CUTTING,HARDWARE EQUIPMENT AND SUPPLIES
09/10/20,Leisure & Community,WH SMITH,23.88,,PRIZES,NEWS DEALERS AND NEWSSTANDS
07/10/20,Leisure & Community,AMZNMKTPLACE,29.90,,PRIZES,MISCELLANEOUS AND SPECIALTY RETAIL STORES
06/10/20,Leisure & Community,AMZNMKTPLACE,27.95,,PRIZES,MISCELLANEOUS AND SPECIALTY RETAIL STORES
01/10/20,Leisure & Community,POST OFFICE SELF SERVI,2.45,,POSTAGE OF ITEM TRACKED,POSTAL SERVICES-GOVERNMENT ONLY
01/10/20,Leisure & Community,TIMPSON LTD,43.60,,KEY CUTTING,MISCELLANEOUS AND SPECIALTY RETAIL STORES
27/10/20,Department of the Deputy Chief Excutive Officer,EBAY O 10-05961-58574,56.47,,3 X MIRA SHOWER HOLDERS,DEPARTMENT STORES
27/10/20,Department of the Deputy Chief Excutive Officer,EBAY O 07-05961-84873,36.00,,15X18MM COMPRESSION REDUCER,DEPARTMENT STORES
23/10/20,Department of the Deputy Chief Excutive Officer,WWW.IRONMONGERYDIRECT.,24.95,,JOB NUMBER: 133939,"GLASS, PAINT, WALLPAPER STORES"
21/10/20,Department of the Deputy Chief Excutive Officer,ARGOS LTD,27.99,,LAMINATOR FOR OFFICE,DISCOUNT STORES
20/10/20,Department of the Deputy Chief Excutive Officer,WWW.IRONMONGERYDIRECT.,75.00,,JOB NUMBER: 129864,"GLASS, PAINT, WALLPAPER STORES"
15/10/20,Department of the Deputy Chief Excutive Officer,WWW.AVS - TRADE WEBS.C,31.46,,JOBS: 133476 & 133810,"BUILDING MATERIALS, LUMBER STORES"
14/10/20,Department of the Deputy Chief Excutive Officer,WWW.TOOLSTATION.COM,14.18,,JOB NUMBER: 133411,HARDWARE STORES
14/10/20,Department of the Deputy Chief Excutive Officer,SP   TOILETSPAREPARTS,22.08,,JOB NUMBER: 133756,COMPUTER SOFTWARE STORES
13/10/20,Department of the Deputy Chief Excutive Officer,WWW.CONSTRUCTIONMATERI,30.85,,JOB NUMBER: 133564,"BUILDING MATERIALS, LUMBER STORES"
06/10/20,Department of the Deputy Chief Excutive Officer,PAYPAL  BBSDIRECT EBAY,20.99,,BALL VALVE DIAPHRAGM WASHERS,"DURABLE GOODS, NOT ELSEWHERE CLASSIFIED"
05/10/20,Department of the Deputy Chief Excutive Officer,HOWDENS - FAREHAM D831,218.91,,JOB NUMBER; 133340,"BUILDING MATERIALS, LUMBER STORES"
05/10/20,Department of the Deputy Chief Excutive Officer,HOWDENS - FAREHAM D831,24.66,,JOB NUMBER: 133355,"BUILDING MATERIALS, LUMBER STORES"
02/10/20,Department of the Deputy Chief Excutive Officer,WWW.ARCO.CO.UK,5.41,,PAID FOR HI VIZ ARCO,INDUSTRIAL SUPPLIES NOT ELSEWHERE CLASSIFIED
30/09/20,Department of the Deputy Chief Excutive Officer,TRADECOUNTERDIRECT,71.99,,JOB NUMBER: 131432,INDUSTRIAL SUPPLIES NOT ELSEWHERE CLASSIFIED
30/09/20,Department of the Deputy Chief Excutive Officer,PAYPAL  DARTVALLEYS,160.43,,JOB NUMBER: 133351,INDUSTRIAL SUPPLIES NOT ELSEWHERE CLASSIFIED
29/09/20,Department of the Deputy Chief Excutive Officer,WWW.UPVCSPARES4REPAIRS,29.00,,JOB NUMBER: 133230,"CONTRACTORS,SPECIAL TRADE-NOT ELSEWHERE CLASSIFIED"
29/09/20,Department of the Deputy Chief Excutive Officer,EBAY O 05-05810-90379,34.37,,JOB NUMBER: 133221,DEPARTMENT STORES
01/10/20,Department of the Deputy Chief Excutive Officer,CO-OP GROUP 070635,30.00,,ELECTRIC TOP UP,"GROCERY STORES, SUPERMARKETS"
13/10/20,Leisure & Community,GOVERNMENT EVENTS,255.00,,MANAGING LOCAL LOCKDOWNS,"ASSOCIATIONS-CIVIC, SOCIAL, AND FRATERNAL"
23/10/20,Leisure & Community,WWW.ARCO.CO.UK,243.90,,COVID MARSHALL ARMBANDS,INDUSTRIAL SUPPLIES NOT ELSEWHERE CLASSIFIED
07/10/20,Leisure & Community,PAYPAL  ENVIRONMENT,149.00,,VIRTUAL CONFERENCE,"ORGANIZATIONS, CHARITABLE AND SOCIAL SERVICES"
26/10/20,Department of the Deputy Chief Excutive Officer,TVLICENSING.CO.UK,157.50,,COMMUNAL TV ,"CONSULTING, MANAGEMENT, AND PUBLIC RELATIONS SVCS"
23/10/20,Department of the Deputy Chief Excutive Officer,POST OFFICE COUNTER,3.21,,POSTING TV APPLICATION,POSTAL SERVICES-GOVERNMENT ONLY
21/10/20,Department of the Deputy Chief Excutive Officer,POUNDWISE PORTCHESTER,10.00,,FUNNELS FOR DECANTING,MISCELLANEOUS AND SPECIALTY RETAIL STORES
21/10/20,Department of the Deputy Chief Excutive Officer,HOME BARGAINS,9.48,,BIN BAGS FOR PPE,HARDWARE STORES
15/10/20,Department of the Deputy Chief Excutive Officer,AMZNMKTPLACE AMAZON.CO,23.39,,SPARE 1ST AID KITS DUE TO COVI,MISCELLANEOUS AND SPECIALTY RETAIL STORES
14/10/20,Department of the Deputy Chief Excutive Officer,AMZNMKTPLACE,38.80,,PPE - APRONS,MISCELLANEOUS AND SPECIALTY RETAIL STORES
14/10/20,Department of the Deputy Chief Excutive Officer,THE WORKS,13.00,,WALL PLANNERS,DISCOUNT STORES
14/10/20,Department of the Deputy Chief Excutive Officer,SAINSBURYS 0681,8.00,,SUPPLY OF BAGS FOR LIFE,"GROCERY STORES, SUPERMARKETS"
13/10/20,Department of the Deputy Chief Excutive Officer,CASTLE (EU) LTD,78.85,,PPE - GLOVES,INDUSTRIAL SUPPLIES NOT ELSEWHERE CLASSIFIED
13/10/20,Department of the Deputy Chief Excutive Officer,HTTP://WWW.HYDRO-X.CO.,"1,949.76",,PPE - WINTER STOCK,CHEMICALS/ALLIED PRODUCTS NOT ELSEWHERE CLASSIFIED
09/10/20,Department of the Deputy Chief Excutive Officer,CASTLE (EU) LTD,-8.22,,REFUND - MOBILES CLEANING ORDE,INDUSTRIAL SUPPLIES NOT ELSEWHERE CLASSIFIED
06/10/20,Department of the Deputy Chief Excutive Officer,AMZ AVANT-GARDE BRANDS,-11.94,,REFUND ON WALLPLANNERS,MISCELLANEOUS AND SPECIALTY RETAIL STORES
30/09/20,Department of the Deputy Chief Excutive Officer,AMZNMKTPLACE,23.05,,DIARY - WALLPLANNERS,MISCELLANEOUS AND SPECIALTY RETAIL STORES
30/09/20,Department of the Deputy Chief Excutive Officer,AMZNMKTPLACE AMAZON.CO,4.99,,DIARY,MISCELLANEOUS AND SPECIALTY RETAIL STORES
28/09/20,Department of the Deputy Chief Excutive Officer,TIMPSON LTD,10.50,,FIRE BOX KEYS,MISCELLANEOUS AND SPECIALTY RETAIL STORES
22/10/20,Department of the Deputy Chief Excutive Officer,JRC VEHICLE REPAIR,60.00,,DAEDALUS GATE,AUTOMOTIVE SERVICE SHOPS
21/10/20,Department of the Deputy Chief Excutive Officer,REVIVE (PORTSMOUTH),240.00,,DAEDALUS GATE,AUTOMOTIVE SERVICE SHOPS
07/10/20,Planning & Regeneration,WWW.PLANNINGPORTAL.CO.,141.00,,PLANNING PORTAL,BUSINESS SERVICES-NOT ELSEWHERE CLASSIFIED
30/09/20,Planning & Regeneration,WWW.CLARES.CO.UK,37.42,,STATIONERY,"OFFICE, SCHOOL SUPPLY, AND STATIONERY STORES"
29/09/20,Planning & Regeneration,WWW.IRONMONGERYDIRECT.,222.00,,PADLOCKS,"GLASS, PAINT, WALLPAPER STORES"
20/10/20,Department of the Deputy Chief Excutive Officer,ROUNDABOUT HOTEL,291.67,,B&B,"LODGING-HOTELS,MOTELS,RESORTS-NOT CLASSIFIED"
20/10/20,Department of the Deputy Chief Excutive Officer,ROUNDABOUT HOTEL,291.67,,B&B,"LODGING-HOTELS,MOTELS,RESORTS-NOT CLASSIFIED"
20/10/20,Department of the Deputy Chief Excutive Officer,ROUNDABOUT HOTEL,291.67,,B&B,"LODGING-HOTELS,MOTELS,RESORTS-NOT CLASSIFIED"
06/10/20,Department of the Deputy Chief Excutive Officer,ROUNDABOUT HOTEL,291.67,,B&B,"LODGING-HOTELS,MOTELS,RESORTS-NOT CLASSIFIED"
06/10/20,Department of the Deputy Chief Excutive Officer,ROUNDABOUT HOTEL,291.67,,B&B,"LODGING-HOTELS,MOTELS,RESORTS-NOT CLASSIFIED"
06/10/20,Department of the Deputy Chief Excutive Officer,ROUNDABOUT HOTEL,350.00,,B&B,"LODGING-HOTELS,MOTELS,RESORTS-NOT CLASSIFIED"
06/10/20,Department of the Deputy Chief Excutive Officer,ROUNDABOUT HOTEL,291.67,,B&B,"LODGING-HOTELS,MOTELS,RESORTS-NOT CLASSIFIED"
28/09/20,Department of the Deputy Chief Excutive Officer,ROUNDABOUT HOTEL,250.00,,B&B,"LODGING-HOTELS,MOTELS,RESORTS-NOT CLASSIFIED"
28/09/20,Department of the Deputy Chief Excutive Officer,ROUNDABOUT HOTEL,291.67,,B&B,"LODGING-HOTELS,MOTELS,RESORTS-NOT CLASSIFIED"
28/09/20,Department of the Deputy Chief Excutive Officer,ROUNDABOUT HOTEL,291.67,,B&B,"LODGING-HOTELS,MOTELS,RESORTS-NOT CLASSIFIED"
28/09/20,Department of the Deputy Chief Excutive Officer,ROUNDABOUT HOTEL,291.67,,B&B,"LODGING-HOTELS,MOTELS,RESORTS-NOT CLASSIFIED"
28/09/20,Department of the Deputy Chief Excutive Officer,ROUNDABOUT HOTEL,350.00,,B&B,"LODGING-HOTELS,MOTELS,RESORTS-NOT CLASSIFIED"
29/09/20,Support Services,PDFTRON SYSTEMS INC,"1,668.58",,SOFTWARE UPDATE,"COMP PROGRAMING,DATA PRCSNG,INTGRTD SYS DSGN SRVS"
26/10/20,Planning & Regeneration,PRESSING NEEDS LTD,45.03,,ADDITIONAL CLEANING CLOTHS,DRY CLEANERS
22/10/20,Planning & Regeneration,WILKO RETAIL LIMITED,7.50,,TOILET AEROMISERS,MISCELLANEOUS GENERAL MERCHANDISE
16/10/20,Planning & Regeneration,SCREWFIX FAREHAM,37.98,,BASEMENT HOSE AND FIXTURES,"BUILDING MATERIALS, LUMBER STORES"
12/10/20,Planning & Regeneration,PRESSING NEEDS LTD,29.17,,ADDITIONAL CLEANING,DRY CLEANERS
28/09/20,Planning & Regeneration,PRESSING NEEDS LTD,29.17,,FACILITIES CLOTH CLEANING,DRY CLEANERS
24/10/20,Department of the Deputy Chief Excutive Officer,ABRATAX - MTD,220.32,,TAX SUBSCRIPTION,COMPUTER SOFTWARE STORES
22/10/20,Support Services,AMZNMKTPLACE AMAZON.CO,156.93,,CASES AND SCREEN PROTECTORS,MISCELLANEOUS AND SPECIALTY RETAIL STORES
21/10/20,Support Services,AMZNMKTPLACE,15.33,,WIRELESS KEYBOARD & MOUSE,MISCELLANEOUS AND SPECIALTY RETAIL STORES
20/10/20,Support Services,AMAZON.CO.UK 703Z51R85,6.49,,USB STICK,DIRECT MARKETING-OTHER DIRECT MARKETERS/NOT ELSEW.
19/10/20,Support Services,AMZNMKTPLACE,19.99,,MESSENGER BAG,MISCELLANEOUS AND SPECIALTY RETAIL STORES
08/10/20,Support Services,AMZNMKTPLACE AMAZON.CO,10.82,,12V USB C CHARGER,MISCELLANEOUS AND SPECIALTY RETAIL STORES
08/10/20,Support Services,UDEMY,29.98,,A+ COURSE PACKAGE,"COMP PROGRAMING,DATA PRCSNG,INTGRTD SYS DSGN SRVS"
08/10/20,Support Services,UDEMY,29.98,,A+ COURSE PACKAGE,SCHOOLS & EDUCATIONAL SVC-NOT ELSEWHERE CLASSIFIED
02/10/20,Support Services,EE STORE 4507,20.00,,PAYG SIM,TELECOM INCL PREPAID/RECURRING PHONE SVCS
02/10/20,Support Services,VODAFONE LIMITED,25.00,,TOP UP,TELECOM INCL PREPAID/RECURRING PHONE SVCS
02/10/20,Support Services,POST OFFICE SELF SERVI,0.76,,POSTAGE SIM,POSTAL SERVICES-GOVERNMENT ONLY
02/10/20,Support Services,BATTDEPOT,49.98,,LAPTOP BATTERY & CHARGER,COMPUTER NETWORK/INFORMATION SERVICES
02/10/20,Support Services,WH SMITH,0.39,,ENVELOPE SIM,NEWS DEALERS AND NEWSSTANDS
30/09/20,Support Services,MEDIA & COMMUNICATIONS,39.00,,HEADSET,TELECOMMUNICATION EQUIPMENT INCL TELEPHONE SALES
29/09/20,Support Services,AMZNMKTPLACE AMAZON.CO,29.99,,IPAD CASE,MISCELLANEOUS AND SPECIALTY RETAIL STORES
28/09/20,Support Services,UDEMY,29.98,,A+ COURSE PACKAGE,"COMP PROGRAMING,DATA PRCSNG,INTGRTD SYS DSGN SRVS"
28/09/20,Support Services,AMZNMKTPLACE AMAZON.CO,29.54,,LAPTOP CASE ON WHEELS,MISCELLANEOUS AND SPECIALTY RETAIL STORES
28/09/20,Support Services,PAYPAL  KINGSFIELDC,"3,189.35",,WEBCAMS,"COMP PROGRAMING,DATA PRCSNG,INTGRTD SYS DSGN SRVS"
28/09/20,Support Services,PP 7841CODE,-1.00,,VERIFICATION CODE,PROFESSIONAL SERVICES-NOT ELSEWHERE CLASSIFIED
26/10/20,Support Services,WWW.SOLACE.ORG.UK,49.00,,RUNNING ELECTIONS EVENT,"ORGANIZATIONS, MEMBERSHIP-NOT ELSEWHERE CLASSIFIED"
22/10/20,Leisure & Community,AMZNMKTPLACE,22.98,,LANYARDS FOR IDENTICOM,MISCELLANEOUS AND SPECIALTY RETAIL STORES
08/10/20,Leisure & Community,WWW.ARCO.CO.UK,44.08,,UNIFORM,INDUSTRIAL SUPPLIES NOT ELSEWHERE CLASSIFIED
12/10/20,Leisure & Community,AMZNMKTPLACE AMAZON.CO,22.99,,TORCHES FOR STANDBY,MISCELLANEOUS AND SPECIALTY RETAIL STORES
08/10/20,Leisure & Community,AMZNMKTPLACE,34.00,,LITTER PICKERS FOR STANDBY X4,MISCELLANEOUS AND SPECIALTY RETAIL STORES
02/10/20,Leisure & Community,WH SMITH,1.99,,WHITE TAC,NEWS DEALERS AND NEWSSTANDS
02/10/20,Leisure & Community,DAILYECHOCOU ONLINE,4.99,,THE ECHO ON LINE,NEWS DEALERS AND NEWSSTANDS
01/10/20,Leisure & Community,JPIMEDIA,8.68,,THE NEWS ON LINE,"THEATRICAL PRODUCERS(EXCL MOTION PIX),TICKET AGNCY"
28/09/20,Leisure & Community,WWW.ARCO.CO.UK,15.88,,JACKET FOR STANDBY,INDUSTRIAL SUPPLIES NOT ELSEWHERE CLASSIFIED
22/10/20,Support Services,DDB PHYSIOTHERAPY,240.00,,MEDICAL,"HEALTH PRACTITIONERS, MEDICAL SRVCS-NOT ELSEWHERE"
10/10/20,Support Services,HR INNER CIRCLE,103.20,,INNER CIRCLE SUBS,"ORGANIZATIONS, MEMBERSHIP-NOT ELSEWHERE CLASSIFIED"
01/10/20,Support Services,INDEED TEL+35312545907,41.25,,JOB ADS,BUSINESS SERVICES-NOT ELSEWHERE CLASSIFIED
15/10/20,Department of the Deputy Chief Excutive Officer,TIMPSON LTD,7.00,,SPARE GARAGE KEY CUT,MISCELLANEOUS AND SPECIALTY RETAIL STORES
01/10/20,Department of the Deputy Chief Excutive Officer,AMAZON.CO.UK 308V71C35,33.99,,LAPTOP BAG,DIRECT MARKETING-OTHER DIRECT MARKETERS/NOT ELSEW.
